Cogmind - Beta 12 X1 @@@ ROGUE MODE // 2022.08.16 @ 00:44:36 Player: Exp. Geonium Core Result: Destroyed by Veteran 7n with Plasma Rifle Performance ------------- Evolutions (6) 3000 Regions Visited (23) 4600 Robots Destroyed (198) 990 Value Destroyed (10317) 10317 Prototype IDs (34) 680 Alien Tech Used (1) 200 Bonus (15004) 15004 TOTAL SCORE: 34791 Bonus ------- High Alert Combat Kills 301 Follower Combat Kills 5236 Entered Garrisons 1200 Used RIF Installer 3500 Aligned with FarCom 300 Found Hidden Lab 3000 Used Core Reset Matrix 3000 Friendly Fire -1533 Cogmind --------- Core Integrity 0/1150 Matter 109/300 Energy 69/100 System Corruption 2% Temperature Cool (0) Movement Core (50) Location -4/Lab Parts ------- > --- POWER (1) -------- (None) > --- PROPULSION (4) --- (None) > --- UTILITY (12) ----- Advanced Signal Interpreter Improved Targeting Computer Improved Targeting Computer Deep Network Scanner > --- WEAPON (2) ------- (None) > --- INVENTORY (5) ---- Armored Wheel Relay Coupler [Swarmer] (66) Hypervelocity Railgun Great Maul Peak State ------------ > --- POWER ------------ Antimatter Reactor > --- PROPULSION ------- Armored Medium Treads Armored Medium Treads Armored Medium Treads Advanced Medium Treads > --- UTILITY ---------- Advanced Heat Sink Cargo Storage Unit Advanced Signal Interpreter Improved Medium Armor Plating Relay Coupler [NC] Relay Coupler [Swarmer] Relay Coupler [Duelist] Relay Coupler [Sentry] Relay Coupler [Demolisher] Relay Coupler [Specialist] Relay Coupler [Hunter] > --- WEAPON ----------- Hypervelocity Gauss Cannon Hypervelocity Gauss Cannon > --- INVENTORY -------- Micro Nuclear Core Improved Treads Improved Treads Improved Treads Improved Treads Improved Treads Improved Treads Myomer Leg Myomer Leg Myomer Leg Armored Wheel Relay Coupler [NC] Relay Coupler [Swarmer] Relay Coupler [Swarmer] Relay Coupler [Swarmer] Relay Coupler [Cutter] Relay Coupler [Cutter] Relay Coupler [Specialist] Hypervelocity Gauss Cannon Advanced Datajack Improved Remote Datajack Improved Remote Datajack Improved Remote Datajack Improved Remote Datajack Improved Remote Datajack Improved Remote Datajack Improved Remote Datajack Great Maul Great Axe [Rating: 98] Favorites ----------- Power Neutrino Core Engine Light Ion Engine Power Core Neutrino Core Reactor Light Antimatter Reactor Propulsion Armored Wheel Treads Improved Treads Leg Myomer Leg Wheel Armored Wheel Utility Cargo Storage Unit Device Advanced Heat Sink Storage Cargo Storage Unit Processor 0b10 Alert Chip Hackware Relay Coupler [Sentry] Protection Propulsion Shielding Weapon Gauss Rifle Energy Gun Small Laser Energy Cannon Heavy Particle Cannon Ballistic Gun Gauss Rifle Ballistic Cannon Hypervelocity Gauss Cannon Launcher Rocket Launcher Special Weapon Remote Datajack Impact Weapon Great Maul Slashing Weapon Great Axe Special Melee Weapon Improved Datajack Build | -11 -10 -10 -9 -9 -9 -8 -8 -8 -8 -7 -7 -7 -7 -6 -6 -6 -5 -5 -4 -4 -4 -4 -4 ------- Run | Scr Mat Min Mat Min Exi Min Mat Gar Mat Fac Gar Fac Gar Fac Gar Fac Fac Gar Fac Gar Fac Arm Lab Slots Evolved 12 | . . . 2 . . . 2 . . 2 . . . 2 . . 2 . 2 . . . . Power . | . . . . . . . . . . . . . . . . . . . . . . . . Propulsion 2 | . . . 1 . . . 1 . . . . . . . . . . . . . . . . Utility 10 | . . . 1 . . . 1 . . 2 . . . 2 . . 2 . 2 . . . . Weapon . | . . . . . . . . . . . . . . . . . . . . . . . . Parts Attached 371 | . 1 6 10 5 5 1 23 12 26 18 16 5 20 1 29 17 3 17 5 42 27 76 6 Power 18 | . . . 1 1 . . 2 1 1 1 2 . . . 1 1 1 1 . 1 1 3 . Engine 3 | . . . 1 1 . . 1 . . . . . . . . . . . . . . . . Core 10 | . . . . . . . 1 . 1 1 2 . . . 1 . . 1 . 1 1 1 . Reactor 5 | . . . . . . . . 1 . . . . . . . 1 1 . . . . 2 . Propulsion 97 | . . 2 3 1 3 . 8 7 4 2 7 . . . 8 5 2 1 2 9 6 26 1 Treads 63 | . . 2 3 1 3 . 8 7 4 2 7 . . . . . . . . 2 6 17 1 Leg 6 | . . . . . . . . . . . . . . . . . . . . . . 6 . Wheel 28 | . . . . . . . . . . . . . . . 8 5 2 1 2 7 . 3 . Hover . | . . . . . . . . . . . . . . . . . . . . . . . . Flight . | . . . . . . . . . . . . . . . . . . . . . . . . Utility 104 | . 1 1 1 1 2 . 6 2 5 4 4 2 7 1 9 9 . 5 3 17 9 13 2 Device 8 | . . 1 . 1 . . 2 . . . . . . . . . . 1 . 1 . 2 . Storage 6 | . 1 . . . 1 . 1 . 1 . 1 . . . . . . . . 1 . . . Processor 11 | . . . 1 . 1 . . 2 2 1 . . . . . . . . . 1 1 2 . Hackware 69 | . . . . . . . 2 . 2 2 2 2 7 1 9 9 . 4 3 11 8 6 1 Protection 10 | . . . . . . . 1 . . 1 1 . . . . . . . . 3 . 3 1 Artifact . | . . . . . . . . . . . . . . . . . . . . . . . . Weapon 152 | . . 3 5 2 . 1 7 2 16 11 3 3 13 . 11 2 . 10 . 15 11 34 3 Energy Gun 1 | . . . . . . . . . . . . . . . . . . . . . . . 1 Energy Cannon 2 | . . 1 . . . . . . . . . . . . . . . . . . . . 1 Ballistic Gun 58 | . . 2 3 1 . . 5 2 6 7 3 1 5 . 5 . . 4 . 5 5 3 1 Ballistic Cannon 15 | . . . . . . . . . . . . . . . . . . . . . 1 14 . Launcher 16 | . . . 2 1 . 1 2 . 4 3 . . 2 . . . . 1 . . . . . Special Weapon 28 | . . . . . . . . . . . . 1 2 . 3 1 . 3 . 5 3 10 . Impact Weapon 23 | . . . . . . . . . 2 . . 1 4 . 3 1 . 2 . 3 2 5 . Slashing Weapon 4 | . . . . . . . . . . . . . . . . . . . . 2 . 2 . Piercing Weapon . | . . . . . . . . . . . . . . . . . . . . . . . . Special Melee Weapon 5 | . . . . . . . . . 4 1 . . . . . . . . . . . . . Unidentified Prototypes 7 | . . . 1 1 . . . . . . . . . . . . . . . . . . 5 Parts Lost 78 | . . 3 1 3 . . 4 1 9 3 1 . . . 2 2 . 6 1 9 8 14 11 Power 11 | . . . 1 1 . . 1 . 1 1 1 . . . 1 1 . 1 . 1 . 1 . Propulsion 36 | . . 1 . 2 . . 1 . 5 2 . . . . 1 1 . 1 . 4 4 6 8 Utility 19 | . . . . . . . 1 1 1 . . . . . . . . 2 1 4 3 6 . Weapon 12 | . . 2 . . . . 1 . 2 . . . . . . . . 2 . . 1 1 3 Highest Loss Streak 11 | . . 2 1 1 . . 2 1 6 2 1 . . . 1 2 . 4 1 3 2 5 11 To Critical Strikes 1 | . . . . . . . . . 1 . . . . . . . . . . . . . . Average Slot Usage (%) 85 | . 85 80 85 80 77 88 95 98 93 85 89 75 75 69 83 91 81 86 79 88 91 85 81 Engine 1 | . 14 14 9 10 11 11 5 . . . . . . . . . . . . . . . . Core 3 | . . . . . . . 3 . . 6 6 7 7 6 5 3 . 2 5 3 4 1 . Reactor 1 | . . . . . . . . 8 7 . . . . . . 2 4 1 . . . 3 4 Treads 15 | . . 6 33 25 33 33 35 35 34 25 23 15 15 13 5 . . . . 4 17 14 . Leg 2 | . 28 21 . . . . . . . . . . . . . . . . . . . 4 20 Wheel 5 | . . . . . . . . . . . . . . . 14 26 22 22 20 14 2 1 . Storage 7 | . 14 14 11 11 15 11 9 9 9 7 7 7 7 6 6 6 5 5 5 5 5 5 4 Processor 9 | . . . 5 11 17 22 11 17 11 27 21 8 7 6 6 6 5 4 . 4 7 6 15 Hackware 22 | . . . . . . . 3 9 12 3 10 19 22 22 29 31 29 30 32 37 42 34 24 Ballistic Gun 7 | . 14 16 17 21 . . 17 17 12 8 15 14 5 . 5 . . 1 . 2 3 . 4 Special Weapon 2 | . . . . . . . . . . . . . 4 6 2 6 5 3 5 4 3 2 . Impact Weapon 2 | . . . . . . . . . . 1 . . 4 6 4 6 5 4 5 2 1 2 4 Naked Turns . | . . . . . . . . . . . . . . . . . . . . . . . . Heaviest Build 184 | 12 27 37 37 31 43 27 37 43 63 61 170 170 162 161 161 159 158 162 153 157 168 184 163 Greatest Support 150 | 20 20 40 60 60 66 66 91 92 92 85 150 150 150 150 150 48 48 48 48 46 96 111 100 Greatest Overweight (x) 12 | . 1 2 . . . . . . . . 1 1 1 1 12 4 6 3 4 12 6 7 1 Average Overweight (x) 1 | . . 1 . . . . . . . . . 1 1 1 2 3 3 2 3 4 1 1 . Largest Inventory Capacity 30 | . 15 15 15 15 15 15 15 15 20 20 30 30 30 30 30 30 30 30 30 30 30 30 30 Average Capacity 25 | . 14 15 15 15 15 15 15 15 18 20 23 30 30 30 30 30 30 30 30 30 30 30 28 Most Carried 30 | . 8 10 15 15 15 14 15 15 19 19 29 30 30 30 30 30 28 30 28 30 30 30 30 Average Carried 23 | . 7 8 14 13 14 14 14 14 14 16 21 28 29 29 28 28 28 27 27 28 28 28 28 Final Capacity 30 | 8 15 15 15 15 15 15 15 15 20 20 30 30 30 30 30 30 30 30 30 30 30 30 5 Final Carried 30 | 6 8 10 15 15 15 14 15 15 18 17 29 30 30 29 30 28 28 28 25 30 29 30 4 Class Distribution -------------------- 45% | Botlord-Mutant 32% | Bothacker-Mutant 15% | Mutant 3% | Scavenger-Mutant Dominant Class ---------------- Mutant | -10/Materials Mutant | -10/Mines Mutant | -9/Materials Mutant | -9/Mines Mutant | -9/Exiles Mutant | -8/Mines Scavenger-Mutant | -8/Materials Mutant | -8/Garrison Bothacker-Mutant | -8/Materials Bothacker-Mutant | -7/Factory Bothacker-Mutant | -7/Garrison Bothacker-Mutant | -7/Factory Bothacker-Mutant | -7/Garrison Bothacker-Mutant | -6/Factory Bothacker-Mutant | -6/Garrison Botlord-Mutant | -6/Factory Botlord-Mutant | -5/Factory Botlord-Mutant | -5/Garrison Botlord-Mutant | -4/Factory Botlord-Mutant | -4/Garrison Botlord-Mutant | -4/Factory Botlord-Mutant | -4/Armory Botlord-Mutant | -4/Lab Resources | -11 -10 -10 -9 -9 -9 -8 -8 -8 -8 -7 -7 -7 -7 -6 -6 -6 -5 -5 -4 -4 -4 -4 -4 ----------- Run | Scr Mat Min Mat Min Exi Min Mat Gar Mat Fac Gar Fac Gar Fac Gar Fac Fac Gar Fac Gar Fac Arm Lab Matter Collected 9769 | 200 27 108 267 225 . 41 676 472 611 352 761 58 498 . 1036 375 60 350 81 727 854 1990 . Remotely . | . . . . . . . . . . . . . . . . . . . . . . . . Salvage Created 8434 | . 154 251 554 154 . 78 1028 662 759 510 991 . 356 . 647 27 341 97 . 234 223 1368 . Parts 416 | . 14 11 62 5 . 3 62 40 39 17 28 . 20 . 16 . 6 9 . 12 17 55 . Haulers Intercepted 5 | . . . 3 . . . 2 . . . . . . . . . . . . . . . . Recyclers Shooed 8 | . . . 1 . . . 2 . 1 1 . 1 . . . . . . . . 2 . . Parts Field Recycled . | . . . . . . . . . . . . . . . . . . . . . . . . Retrieved Matter . | . . . . . . . . . . . . . . . . . . . . . . . . Parts Self-Destructed . | . . . . . . . . . . . . . . . . . . . . . . . . Prevented . | . . . . . . . . . . . . . . . . . . . . . . . . Kills | -11 -10 -10 -9 -9 -9 -8 -8 -8 -8 -7 -7 -7 -7 -6 -6 -6 -5 -5 -4 -4 -4 -4 -4 ------- Run | Scr Mat Min Mat Min Exi Min Mat Gar Mat Fac Gar Fac Gar Fac Gar Fac Fac Gar Fac Gar Fac Arm Lab Combat Hostiles Destroyed 163 | . 5 7 13 19 . 3 22 14 16 9 4 . 9 . 1 . . 8 . 6 4 23 . Melee 5 | . . . . . . . . . . . . . . . . . . . . 2 . 3 . Guns 81 | . 5 7 3 6 . . 15 14 9 4 4 . 5 . 1 . . . . 4 4 . . Cannons 17 | . . . . . . . . . . . . . . . . . . . . . . 17 . AOE 56 | . . . 10 13 . 3 7 . 6 5 . . 4 . . . . 8 . . . . . Classes Destroyed 21 | . 3 . 5 2 . . 2 1 3 . . . 1 . 1 . . . . 1 1 1 . Worker 12 | . 1 . 5 . . . 3 . 1 . . . . . . 1 . . . . 1 . . Builder 3 | . . . 1 . . . . . . 1 . . . . . . 1 . . . . . . Tunneler 3 | . . . 1 . . . . . 1 . . . . . . 1 . . . . . . . Hauler 5 | . . . 3 . . . 2 . . . . . . . . . . . . . . . . Recycler 10 | . . . 2 . . . 1 . 2 3 . . . . . . 2 . . . . . . Mechanic 3 | . . . . . . . . . 2 . . . . . . . 1 . . . . . . Operator 2 | . . . . . . . . . 1 . . . . . . . . . . . . 1 . Watcher 4 | . . . 1 . . . 2 . . . . . . . . . . . . . . 1 . Swarmer 53 | . 3 3 10 4 . . 6 3 7 3 2 . 2 . . . . 7 . 1 . 2 . Saboteur 2 | . . . . . . . . . . . . . . . . . . . . 2 . . . Grunt 51 | . 2 4 3 1 . 3 10 4 5 4 1 . 7 . . . . . . . . 7 . Brawler 4 | . . . . . . . . . 2 1 . . . . . . . . . . . 1 . Duelist 2 | . . . . . . . . 2 . . . . . . . . . . . . . . . Protector 1 | . . . . . . . . . . . . . . . . . . . . . . 1 . Sentry 13 | . . . . . . . 5 5 1 . . . . . . . . . . . . 2 . Demolisher 1 | . . . . 1 . . . . . . . . . . . . . . . . . . . Hunter 12 | . . . . . . . 1 . 1 1 1 . . . 1 . . 1 . 1 . 5 . Programmer 13 | . . . . . . . . . . . . . 2 . . . . . . 2 3 6 . Heavy 1 | . . . . . . . . . . . . . . . . . . . . . 1 . . Assembled 13 | . . . . 13 . . . . . . . . . . . . . . . . . . . Thug 1 | . . . . . . . . . 1 . . . . . . . . . . . . . . Infiltrator 2 | . . . . . . . . . . . . . . . 2 . . . . . . . . Best Kill Streak 13 | . 3 3 11 13 . 3 7 5 5 7 2 . 4 . 1 1 1 8 . 2 3 4 . Combat Bots Only 13 | . 3 3 7 13 . 3 4 5 4 5 2 . 4 . 1 . . 8 . 2 2 4 . Max Kills in Single Turn 4 | . 1 1 4 3 . 1 2 1 4 3 1 . 2 . 1 1 1 4 . 1 1 1 . Gunslinging . | . . . . . . . . . . . . . . . . . . . . . . . . Exploded 4 | . . . 3 3 . 1 2 . 3 3 . . 2 . . . . 4 . . . . . Melee 1 | . . . . . . . . . . . . . . . . . . . . 1 . 1 . Uniques/NPCs Destroyed . | . . . . . . . . . . . . . . . . . . . . . . . . Combat | -11 -10 -10 -9 -9 -9 -8 -8 -8 -8 -7 -7 -7 -7 -6 -6 -6 -5 -5 -4 -4 -4 -4 -4 -------- Run | Scr Mat Min Mat Min Exi Min Mat Gar Mat Fac Gar Fac Gar Fac Gar Fac Fac Gar Fac Gar Fac Arm Lab Damage Taken 15102 | . 229 513 299 630 . 80 1142 542 1610 734 137 81 870 . 826 604 23 729 156 681 1394 2946 876 Core 2581 | . 81 132 40 109 . 32 85 98 234 186 35 . 108 . 78 124 . 77 24 82 320 431 305 Absorbed by Shields 636 | . . . . . . . . . . . . . . . . . . 5 . 112 . 519 . Redirected to Shielding 83 | . . . . . . . . . . . . . . . . . . . . 65 18 . . Regen/Repaired (Parts) 207 | . . . . . . . . . 207 . . . . . . . . . . . . . . Core Remaining (%) 59 | 100 . 14 . . . 54 . . 24 . . . 53 . . 76 . 92 . . . . . Volleys Fired 814 | . 17 46 20 21 . 4 75 41 46 24 75 . 44 5 76 47 2 35 13 52 54 115 2 Largest 2 | . 2 2 2 2 . 1 2 2 2 2 2 . 2 1 2 1 1 2 1 2 2 2 2 Hottest 122 | . 60 60 48 48 . 33 48 53 53 56 56 . 56 5 63 5 5 63 7 68 66 122 80 Shots Fired 1247 | . 34 60 34 33 . 4 137 80 76 38 150 1 69 5 129 47 2 37 13 68 65 160 5 Gun 836 | . 34 60 26 24 . . 128 80 64 31 150 1 49 . 106 . . 14 . 32 21 11 5 Cannon 116 | . . . . . . . . . . . . . . . . . . . . . 3 113 . Launcher 67 | . . . 8 9 . 4 9 . 12 7 . . 7 . . . . 11 . . . . . Special 228 | . . . . . . . . . . . . . 13 5 23 47 2 12 13 36 41 36 . Kinetic 927 | . 17 52 26 24 . . 128 80 64 31 150 1 49 . 106 . . 14 . 32 24 124 5 Thermal 25 | . 17 8 . . . . . . . . . . . . . . . . . . . . . Explosive 67 | . . . 8 9 . 4 9 . 12 7 . . 7 . . . . 11 . . . . . Electromagnetic . | . . . . . . . . . . . . . . . . . . . . . . . . Robot Hit Streak 47 | . 6 14 7 6 . 9 19 21 8 7 30 14 7 8 47 13 15 19 4 8 13 17 1 Robot Miss Streak 6 | . 4 3 2 3 . . 3 2 3 2 3 . 4 1 2 4 . 6 1 3 3 5 1 Penetration Max 1 | . . . . . . . . . . 1 1 . 1 . 1 . . . . . . 1 1 Secondary Targets 9 | . 1 1 . 1 . . 1 2 1 . . . 1 . . . . . . 1 . . . Max Gunslinging Chain 1 | . 1 1 . 1 . . 1 1 1 . . . 1 . . . . . . 1 . . . Shots Hit Robots 911 | . 20 43 20 15 . 3 109 54 51 28 115 1 39 4 116 39 6 18 11 50 49 119 1 Core Hits 416 | . 11 18 31 30 . 7 53 24 50 26 42 . 18 . 36 . . 21 . 7 11 30 1 Critical Kills 23 | . . . . . . . . . . 1 2 . . . 2 . . . . 1 1 16 . Critical Parts Destroyed 34 | . . . . . . . . . 2 . 1 . . . 3 . 1 . . . 2 25 . Critical Strikes 59 | . . . . . . . . . 2 1 3 . . . 5 . 1 . . 1 3 43 . Destroy 51 | . . . . . . . . . 2 1 3 . . . 4 . . . . 1 2 38 . Smash 8 | . . . . . . . . . . . . . . . 1 . 1 . . . 1 5 . Melee Attacks 162 | . . . . . . . . . 13 8 . 2 20 4 15 9 6 3 1 10 9 38 24 Impact 149 | . . . . . . . . . 7 5 . 2 20 4 15 9 6 3 1 10 9 34 24 Slashing 4 | . . . . . . . . . . . . . . . . . . . . . . 4 . Piercing . | . . . . . . . . . . . . . . . . . . . . . . . . Sneak Attacks 15 | . . . . . . . . . 3 . . . . . 2 3 4 . 1 . 2 . . Combat Hostiles 1 | . . . . . . . . . . . . . . . . 1 . . . . . . . Follow-up Attacks . | . . . . . . . . . . . . . . . . . . . . . . . . Damage Inflicted 19232 | . 195 366 1240 938 . 368 2097 1054 1818 1172 2413 30 998 . 1489 235 509 970 84 668 679 1894 15 Guns 11031 | . 195 357 292 205 . . 1663 1054 853 503 2407 22 666 . 1281 . . 233 . 591 481 213 15 Cannons 827 | . . . . . . . . . . . . . . . . . . . . . 40 787 . Explosions 5111 | . . . 947 730 . 368 427 . 918 652 . . 332 . . . . 737 . . . . . Melee 2159 | . . . . . . . . . 47 . . . . . 208 235 509 . 84 72 155 849 . Ramming 104 | . . 9 1 3 . . 7 . . 17 6 8 . . . . . . . 5 3 45 . Kinetic 11682 | . 72 304 292 205 . . 1663 1054 853 503 2407 22 666 . 1281 . . 233 . 591 521 1000 15 Thermal 176 | . 123 53 . . . . . . . . . . . . . . . . . . . . . Explosive 5111 | . . . 947 730 . 368 427 . 918 652 . . 332 . . . . 737 . . . . . Electromagnetic . | . . . . . . . . . . . . . . . . . . . . . . . . Impact 2023 | . . . . . . . . . 47 . . . . . 208 235 509 . 84 72 155 713 . Slashing 136 | . . . . . . . . . . . . . . . . . . . . . . 136 . Piercing . | . . . . . . . . . . . . . . . . . . . . . . . . Highest Corruption 28 | . . . 3 3 3 3 3 3 4 4 4 4 10 . . . . 3 . 8 11 26 28 Average Corruption 7 | . . . 2 3 3 3 2 3 3 3 4 4 7 . . . . 1 . 5 8 14 25 Corruption Purged . | . . . . . . . . . . . . . . . . . . . . . . . . Corruption Blocked . | . . . . . . . . . . . . . . . . . . . . . . . . Effects 374 | . . . 5 13 4 2 11 13 17 4 21 11 51 . . . . 6 . 13 73 85 45 Message Errors 100 | . . . 1 2 1 1 3 5 6 2 3 3 12 . . . . 4 . 5 18 20 14 Matter Fused 75 | . . . 1 1 1 . 1 1 3 . 3 2 8 . . . . 1 . 4 21 23 5 Heat Flow Errors 59 | . . . 1 5 . . 1 2 2 1 3 . 11 . . . . 1 . 1 14 9 8 Energy Discharges 37 | . . . . 1 . 1 2 1 2 . 1 2 6 . . . . . . 1 8 6 6 Parts Rejected 6 | . . . . . . . . 2 . 1 . . . . . . . . . 1 . 2 . Data Loss (minor) 40 | . . . 1 3 . . 2 1 1 . 4 2 8 . . . . . . 1 5 8 4 Data Loss (major) 26 | . . . . 1 2 . 2 . 1 . 3 1 4 . . . . . . . 3 7 2 Misfires 12 | . . . 1 . . . . 1 . . 2 1 1 . . . . . . . 1 2 3 Alerts 8 | . . . . . . . . . 2 . . . 1 . . . . . . . 1 3 1 Misdirections 3 | . . . . . . . . . . . . . . . . . . . . . 1 2 . Weapon Failures 8 | . . . . . . . . . . . 2 . . . . . . . . . 1 3 2 Overload Shots . | . . . . . . . . . . . . . . . . . . . . . . . . Overflow Damage 1046 | . . . 21 5 . 24 . . 27 5 . . . . 117 145 409 26 14 . . 253 . Projectiles . | . . . . . . . . . . . . . . . . . . . . . . . . Explosions 81 | . . . 21 5 . 24 . . . 5 . . . . . . . 26 . . . . . Melee 965 | . . . . . . . . . 27 . . . . . 117 145 409 . 14 . . 253 . Knockbacks 18 | . . . . . . . . . 1 . . . . . 1 2 1 . 1 . . 12 . Impact 12 | . . . . . . . . . 1 . . . . . 1 2 1 . 1 . . 6 . Kinetic 6 | . . . . . . . . . . . . . . . . . . . . . . 6 . Secondary . | . . . . . . . . . . . . . . . . . . . . . . . . Self-Inflicted Damage 378 | . . . 67 45 . . 39 . 63 32 . . 1 . . . . 116 . . . 15 . Shots 13 | . . . 2 1 . . 3 . 2 1 . . 1 . . . . 3 . . . . . Rammed 12 | . . . 1 1 . . . . 1 4 1 1 . . . . . . . 1 1 1 . Targets Rammed 18 | . . 3 1 1 . . 1 . 1 4 1 1 . . . . . . . 1 1 3 . Kicked 3 | . . 3 . . . . . . . . . . . . . . . . . . . . . Crushed 3 | . . . . . . . 1 . . . . . . . . . . . . . . 2 . Highest Temperature 271 | . 91 40 163 271 . 40 181 257 231 209 254 . 262 . 11 . . 131 . 210 256 259 261 Average Temperature 73 | . 36 16 21 76 . 21 36 56 42 87 80 . 90 . 4 . . 80 . 124 98 105 103 Received Heat Transfer 3010 | . 69 234 36 69 . 63 477 279 522 285 12 21 183 . 300 90 9 51 9 9 54 145 93 Effects 1 | . . . . 1 . . . . . . . . . . . . . . . . . . . Energy Bleed 1 | . . . . 1 . . . . . . . . . . . . . . . . . . . Siege Activations . | . . . . . . . . . . . . . . . . . . . . . . . . Robots Corrupted . | . . . . . . . . . . . . . . . . . . . . . . . . Combat Hostiles . | . . . . . . . . . . . . . . . . . . . . . . . . Parts Fried 21 | . . . . . . . . . . . . . . . 3 2 12 . . . . 4 . Impact Corruptions 25 | . . . . . . . . . 2 . . . . . 2 5 5 . 1 . . 10 . Robots Melted . | . . . . . . . . . . . . . . . . . . . . . . . . Combat Hostiles . | . . . . . . . . . . . . . . . . . . . . . . . . Parts Melted 2 | . . . . . . . 1 . . . . . 1 . . . . . . . . . . Heat Transferred 400 | . 275 125 . . . . . . . . . . . . . . . . . . . . . Parts Sabotaged 19 | . . . . . . . . . . . . . . . . . . . . 8 . 11 . Parts Stolen . | . . . . . . . . . . . . . . . . . . . . . . . . Parts Stripped . | . . . . . . . . . . . . . . . . . . . . . . . . Power Chain Reactions . | . . . . . . . . . . . . . . . . . . . . . . . . Missiles Intercepted . | . . . . . . . . . . . . . . . . . . . . . . . . Alert | -11 -10 -10 -9 -9 -9 -8 -8 -8 -8 -7 -7 -7 -7 -6 -6 -6 -5 -5 -4 -4 -4 -4 -4 ------- Run | Scr Mat Min Mat Min Exi Min Mat Gar Mat Fac Gar Fac Gar Fac Gar Fac Fac Gar Fac Gar Fac Arm Lab Peak Influence 853 | . 155 170 623 422 . 101 417 592 696 398 614 501 853 451 507 756 193 626 317 263 141 199 . Initial 436 | . . 60 19 170 . . 39 202 288 223 245 322 240 436 218 266 144 135 317 205 137 16 . Average 291 | . 83 86 344 268 . 93 291 402 445 289 532 346 555 383 283 455 166 442 292 165 30 82 . Maximum Alert Level 3 | . . . 2 2 . . 2 2 2 1 2 2 3 2 2 3 . 2 1 1 . . . Low Security (%) 40 | . 100 100 28 48 . 100 13 . 5 . . . . . 7 . 100 20 . 87 100 100 . Level 1 30 | . . . 8 38 . . 62 44 44 100 13 92 23 42 81 39 . 15 100 12 . . . Level 2 26 | . . . 62 12 . . 24 55 49 . 86 7 52 57 11 52 . 63 . . . . . Level 3 3 | . . . . . . . . . . . . . 23 . . 7 . . . . . . . Level 4 . | . . . . . . . . . . . . . . . . . . . . . . . . Level 5 . | . . . . . . . . . . . . . . . . . . . . . . . . High Security . | . . . . . . . . . . . . . . . . . . . . . . . . Max Security . | . . . . . . . . . . . . . . . . . . . . . . . . Squads Dispatched 42 | . . 1 . . . . 2 . 7 1 . . . 2 . 11 . . 1 . 10 7 . Investigation 6 | . . 1 . . . . 2 . 1 . . . . 1 . 1 . . . . . . . Extermination 9 | . . . . . . . . . . . . . . . . 2 . . . . 3 4 . Reinforcement 17 | . . . . . . . . . 4 . . . . 1 . 5 . . . . 4 3 . Assault 4 | . . . . . . . . . 1 . . . . . . 3 . . . . . . . Garrison 6 | . . . . . . . . . 1 1 . . . . . . . . 1 . 3 . . Intercept . | . . . . . . . . . . . . . . . . . . . . . . . . Searches Triggered . | . . . . . . . . . . . . . . . . . . . . . . . . Construction Impeded 2 | . . . . . . . . . . . . . . . . 1 . . . . 1 . . Haulers Reinforced . | . . . . . . . . . . . . . . . . . . . . . . . . Active Scanning Responses . | . . . . . . . . . . . . . . . . . . . . . . . . Cargo Convoy Interrupts 1 | . . . . . . . . . . . . . . . . 1 . . . . . . . Alert ID Control Effect 70 | . . . . . . . . . . . . . 7 . 3 14 1 1 3 10 13 18 . Stealth | -11 -10 -10 -9 -9 -9 -8 -8 -8 -8 -7 -7 -7 -7 -6 -6 -6 -5 -5 -4 -4 -4 -4 -4 --------- Run | Scr Mat Min Mat Min Exi Min Mat Gar Mat Fac Gar Fac Gar Fac Gar Fac Fac Gar Fac Gar Fac Arm Lab Distress Signals 18 | . 1 . 4 . . . 3 . 1 1 . . . . . 1 1 . 1 . 1 4 . Communications Jammed . | . . . . . . . . . . . . . . . . . . . . . . . . Distress Signals . | . . . . . . . . . . . . . . . . . . . . . . . . Times Spotted 445 | . 8 7 19 25 . 3 30 14 42 17 11 9 28 1 23 31 3 14 7 37 33 75 8 Peak Tracking Total 14 | . 4 3 6 14 . 3 5 4 7 5 3 3 5 1 7 5 2 5 5 5 6 5 7 Tactical Retreats 8 | . . . . . . . 1 . . . . . . . 1 3 . . . . . 1 2 Traps | -11 -10 -10 -9 -9 -9 -8 -8 -8 -8 -7 -7 -7 -7 -6 -6 -6 -5 -5 -4 -4 -4 -4 -4 ------- Run | Scr Mat Min Mat Min Exi Min Mat Gar Mat Fac Gar Fac Gar Fac Gar Fac Fac Gar Fac Gar Fac Arm Lab Traps Triggered 28 | . . . 2 . . . 2 3 . 2 1 . 3 . 2 . 1 5 1 3 1 2 . Indirectly . | . . . . . . . . . . . . . . . . . . . . . . . . Trap Hack Attempts . | . . . . . . . . . . . . . . . . . . . . . . . . Triggered . | . . . . . . . . . . . . . . . . . . . . . . . . Disarmed . | . . . . . . . . . . . . . . . . . . . . . . . . Reprogrammed 4 | . . . . . . . . . . . . . . . . . . . . . . 4 . Reused 2 | . . . . . . . . . . . . . . . . . . . . . . 2 . Traps Extracted . | . . . . . . . . . . . . . . . . . . . . . . . . Installed . | . . . . . . . . . . . . . . . . . . . . . . . . Triggered 3 | . . . . . . . . . . . . . . . . 1 . . . . . 2 . Machines | -11 -10 -10 -9 -9 -9 -8 -8 -8 -8 -7 -7 -7 -7 -6 -6 -6 -5 -5 -4 -4 -4 -4 -4 ---------- Run | Scr Mat Min Mat Min Exi Min Mat Gar Mat Fac Gar Fac Gar Fac Gar Fac Fac Gar Fac Gar Fac Arm Lab Machines Disabled 70 | . . . 1 . . 1 3 2 5 . 2 . 3 . 5 28 1 5 2 4 2 5 1 Max in Single Turn 1 | . . . 1 . . 1 1 1 1 . 1 . 1 . 1 . 1 1 . 1 1 1 1 Garrison Access 3 | . . . . . . . . . 1 . . . . . . 1 . . . . 1 . . Garrison Relay 17 | . . . . . . . . 2 . . 2 . 3 . 4 . . 2 . 4 . . . Machines Sabotaged . | . . . . . . . . . . . . . . . . . . . . . . . . Garrisons Compromised 1 | . . . . . . . . . . . . . . . . 1 . . . . . . . Overloaded Fab Kills . | . . . . . . . . . . . . . . . . . . . . . . . . Hacking | -11 -10 -10 -9 -9 -9 -8 -8 -8 -8 -7 -7 -7 -7 -6 -6 -6 -5 -5 -4 -4 -4 -4 -4 --------- Run | Scr Mat Min Mat Min Exi Min Mat Gar Mat Fac Gar Fac Gar Fac Gar Fac Fac Gar Fac Gar Fac Arm Lab Machines Accessed 53 | . . 1 2 . 2 . 6 2 3 2 2 4 2 2 3 6 2 2 2 1 5 3 1 Terminals 31 | . . . 2 . . . 5 2 2 1 2 2 2 1 3 3 . 2 . 1 1 2 . Fabricators 7 | . . . . . . . . . . . . 1 . . . 1 1 . 1 . 2 1 . Repair Stations . | . . . . . . . . . . . . . . . . . . . . . . . . Recycling Units . | . . . . . . . . . . . . . . . . . . . . . . . . Scanalyzers . | . . . . . . . . . . . . . . . . . . . . . . . . Garrison Access 11 | . . . . . . . 1 . 1 1 . 1 . 1 . 2 1 . 1 . 2 . . Total Hacks 134 | . . 1 2 . 2 . 19 8 9 4 4 9 3 7 6 9 5 4 2 2 17 8 13 Successful 64 | . . 1 1 . 2 . 5 2 6 1 2 4 1 3 2 3 2 2 1 1 7 5 13 Failed 70 | . . . 1 . . . 14 6 3 3 2 5 2 4 4 6 3 2 1 1 10 3 . Catastrophic 19 | . . . 1 . . . 4 . 1 . . 2 2 1 . 2 2 . 1 . 2 1 . Database Lockouts . | . . . . . . . . . . . . . . . . . . . . . . . . Manual 55 | . . . 2 . 1 . 12 . 2 3 . 6 1 1 1 7 4 2 . 1 10 2 . Terminals 76 | . . . 2 . . . 16 8 6 1 4 5 3 5 6 4 . 4 . 2 3 7 . Fabricators 15 | . . . . . . . . . . . . 3 . . . 2 2 . 1 . 6 1 . Repair Stations . | . . . . . . . . . . . . . . . . . . . . . . . . Recycling Units . | . . . . . . . . . . . . . . . . . . . . . . . . Scanalyzers . | . . . . . . . . . . . . . . . . . . . . . . . . Garrison Access 27 | . . . . . . . 3 . 3 3 . 1 . 2 . 3 3 . 1 . 8 . . Terminal Hacks 40 | . . 1 1 . 2 . 4 2 3 . 2 . 1 2 2 . . 1 . 1 . 5 13 Record 14 | . . . . . 1 . . . . . . . . . . . . . . . . . 13 Robot Analysis 4 | . . . . . . . 3 . 1 . . . . . . . . . . . . . . Prototype ID Bank 1 | . . . . . . . . . . . . . . 1 . . . . . . . . . Open Door 4 | . . 1 . . . . . 1 . . 1 . . . 1 . . . . . . . . Level Access Points 1 | . . . . . . . . . . . . . . . . . . . . . . 1 . Branch Access Points 2 | . . . 1 . . . . . . . . . . . . . . . . . . 1 . Emergency Access Points 3 | . . . . . . . . 1 . . 1 . . . . . . . . 1 . . . Garrison Index 1 | . . . . . . . 1 . . . . . . . . . . . . . . . . Unreport Threat 2 | . . . . . . . . . 2 . . . . . . . . . . . . . . Locate Traps 1 | . . . . . . . . . . . . . . . . . . . . . . 1 . Reprogram Traps 1 | . . . . . . . . . . . . . . . . . . . . . . 1 . Registered Components 1 | . . . . . . . . . . . . . . 1 . . . . . . . . . Zone Layout 1 | . . . . . . . . . . . . . . . . . . . . . . 1 . Garrison Registry 2 | . . . . . . . . . . . . . . . 1 . . 1 . . . . . Patrol Navigation 1 | . . . . . . . . . . . . . 1 . . . . . . . . . . EX-Prototype ID Bank 1 | . . . . . 1 . . . . . . . . . . . . . . . . . . Fabricator Hacks 2 | . . . . . . . . . . . . 1 . . . . . . . . 1 . . Network Status 2 | . . . . . . . . . . . . 1 . . . . . . . . 1 . . Repair Station Hacks . | . . . . . . . . . . . . . . . . . . . . . . . . Recycling Unit Hacks . | . . . . . . . . . . . . . . . . . . . . . . . . Scanalyzer . | . . . . . . . . . . . . . . . . . . . . . . . . Garrison Access Hacks 9 | . . . . . . . 1 . 1 1 . 1 . 1 . . 1 . 1 . 2 . . Unlock Access 8 | . . . . . . . 1 . 1 1 . 1 . 1 . . 1 . 1 . 1 . . Seal Access 1 | . . . . . . . . . . . . . . . . . . . . . 1 . . Unauthorized Hacks 13 | . . . . . . . . . 2 . . 2 . . . 3 1 1 . . 4 . . Terminals 3 | . . . . . . . . . . . . 1 . . . 1 . 1 . . . . . Botnet 2 | . . . . . . . . . . . . . . . . 1 . 1 . . . . . Operators 1 | . . . . . . . . . . . . 1 . . . . . . . . . . . Fabricators 2 | . . . . . . . . . . . . 1 . . . . . . . . 1 . . Fabnet 1 | . . . . . . . . . . . . 1 . . . . . . . . . . . Haulers 1 | . . . . . . . . . . . . . . . . . . . . . 1 . . Repair Stations . | . . . . . . . . . . . . . . . . . . . . . . . . Recycling Units . | . . . . . . . . . . . . . . . . . . . . . . . . Scanalyzers . | . . . . . . . . . . . . . . . . . . . . . . . . Garrison Access 8 | . . . . . . . . . 2 . . . . . . 2 1 . . . 3 . . Broadcast 1 | . . . . . . . . . . . . . . . . . . . . . 1 . . Restock 1 | . . . . . . . . . 1 . . . . . . . . . . . . . . Reprogram 5 | . . . . . . . . . 1 . . . . . . 2 1 . . . 1 . . Watchers 1 | . . . . . . . . . . . . . . . . . . . . . 1 . . Data Cores Recovered 1 | . . . . . . . . . . . . . . . . 1 . . . . . . . Used . | . . . . . . . . . . . . . . . . . . . . . . . . Hacking Detections 44 | . . . 1 . . . 6 2 3 2 2 3 2 2 2 6 1 2 2 1 4 3 . Full Trace Events 3 | . . . . . . . 2 . . . . . . 1 . . . . . . . . . Feedback Events . | . . . . . . . . . . . . . . . . . . . . . . . . Feedback Blocked . | . . . . . . . . . . . . . . . . . . . . . . . . Robot Schematics Acquired . | . . . . . . . . . . . . . . . . . . . . . . . . Robots Built . | . . . . . . . . . . . . . . . . . . . . . . . . Authchips . | . . . . . . . . . . . . . . . . . . . . . . . . Time . | . . . . . . . . . . . . . . . . . . . . . . . . Total Robot Build Rating . | . . . . . . . . . . . . . . . . . . . . . . . . Part Schematics Acquired . | . . . . . . . . . . . . . . . . . . . . . . . . Parts Built . | . . . . . . . . . . . . . . . . . . . . . . . . Authchips . | . . . . . . . . . . . . . . . . . . . . . . . . Time . | . . . . . . . . . . . . . . . . . . . . . . . . Total Part Build Rating . | . . . . . . . . . . . . . . . . . . . . . . . . Parts Repaired . | . . . . . . . . . . . . . . . . . . . . . . . . Time . | . . . . . . . . . . . . . . . . . . . . . . . . Parts Recycled . | . . . . . . . . . . . . . . . . . . . . . . . . Recycled Matter . | . . . . . . . . . . . . . . . . . . . . . . . . Retrieved Matter . | . . . . . . . . . . . . . . . . . . . . . . . . Retrieved Components . | . . . . . . . . . . . . . . . . . . . . . . . . Parts Scanalyzed . | . . . . . . . . . . . . . . . . . . . . . . . . Part Schematics Acquired . | . . . . . . . . . . . . . . . . . . . . . . . . Parts Damaged . | . . . . . . . . . . . . . . . . . . . . . . . . Bothacking | -11 -10 -10 -9 -9 -9 -8 -8 -8 -8 -7 -7 -7 -7 -6 -6 -6 -5 -5 -4 -4 -4 -4 -4 ------------ Run | Scr Mat Min Mat Min Exi Min Mat Gar Mat Fac Gar Fac Gar Fac Gar Fac Fac Gar Fac Gar Fac Arm Lab Used RIF Installer 7 | . . . . . . . . 1 . . 1 . 1 . 1 . . 1 . 2 . . . Coupler Efficiency 1 | . . . . . . . . . . . . . . . . . . 1 . . . . . Threat Obfuscator 1 | . . . . . . . . . . . . . . . . . . . . 1 . . . Robot Detection 1 | . . . . . . . . . . . . . 1 . . . . . . . . . . Alert ID Control 1 | . . . . . . . . . . . 1 . . . . . . . . . . . . Structural Interface 1 | . . . . . . . . . . . . . . . 1 . . . . . . . . Program Shield 1 | . . . . . . . . . . . . . . . . . . . . 1 . . . Robots Hacked 133 | . . . . . . . . . 5 2 . . 9 1 15 24 1 6 7 24 21 18 . Non-combat 19 | . . . . . . . . . 3 . . . . 1 . 5 . . 2 . 3 5 . Combat 114 | . . . . . . . . . 2 2 . . 9 . 15 19 1 6 5 24 18 13 . Robot Hacks Applied 140 | . . . . . . . . . 6 3 . . 9 3 15 23 2 5 7 24 23 20 . parse_system 1 | . . . . . . . . . 1 . . . . . . . . . . . . . . ignore_repairs 1 | . . . . . . . . . . . . . . . . . . . . . 1 . . drop_inventory 3 | . . . . . . . . . 1 . . . . . . 2 . . . . . . . ignore_parts 2 | . . . . . . . . . . . . . . . . . . . 2 . . . . purge_threat 1 | . . . . . . . . . . . . . . 1 . . . . . . . . . block_reporting 1 | . . . . . . . . . . . . . . 1 . . . . . . . . . map_route 4 | . . . . . . . . . . . . . . . . 1 . . . . 1 2 . mark_security 1 | . . . . . . . . . . . . . . . . . . . . . . 1 . find_garrison 5 | . . . . . . . . . 1 1 . . . . . . 1 . . . 2 . . scatter_targeting 2 | . . . . . . . . . . . . . . . . 2 . . . . . . . link_complan 1 | . . . . . . . . . . . . . . . 1 . . . . . . . . disrupt_area 1 | . . . . . . . . . . . . . . . . . . . . . . 1 . reboot_system 7 | . . . . . . . . . . 1 . . . . . . . 1 . 1 2 2 . go_dormant 1 | . . . . . . . . . . . . . . . . 1 . . . . . . . overwrite_iff 22 | . . . . . . . . . . . . . 2 . 4 3 . . 2 8 1 2 . formatsys_low 8 | . . . . . . . . . 2 . . . . 1 . 3 . . . . 1 1 . formatsys_high 79 | . . . . . . . . . 1 1 . . 7 . 10 11 1 4 3 15 15 11 . Relay Couplers Released 77 | . . . . . . . . 7 4 . 10 . 13 . 16 1 . 10 . 16 . . . Machine Destruction 74 | . . . . . . . . 7 1 . 10 . 13 . 16 1 . 10 . 16 . . . Programmers 3 | . . . . . . . . . 3 . . . . . . . . . . . . . . Attached 63 | . . . . . . . . . 2 2 2 . 7 1 9 8 . 4 3 11 8 6 . Fabnet Peak Effective % 3 | . . . . . . . . . . . . . . 3 3 3 1 1 . . . . . Autooverrided 3 | . . . . . . . . . . . . . . . . 2 . 1 . . . . . Robots Rewired 7 | . . . . . . . . 4 . . . . 3 . . . . . . . . . . Allies Hacked 2 | . . . . . . . . . . . . . . . . . . . . . . 2 . Hacks Repelled . | . . . . . . . . . . . . . . . . . . . . . . . . Allies | -11 -10 -10 -9 -9 -9 -8 -8 -8 -8 -7 -7 -7 -7 -6 -6 -6 -5 -5 -4 -4 -4 -4 -4 -------- Run | Scr Mat Min Mat Min Exi Min Mat Gar Mat Fac Gar Fac Gar Fac Gar Fac Fac Gar Fac Gar Fac Arm Lab Total Allies 141 | . . . . 3 . . . 4 5 1 3 . 12 1 18 20 1 5 5 23 17 23 . Largest Group 15 | . . . . 2 . . . 4 5 1 3 3 6 3 9 7 1 3 4 9 15 11 6 Highest-Rated Group 698 | . . . . 41 . . . 121 135 32 163 163 266 90 272 268 49 95 161 377 698 510 293 Highest-Rated Ally 137 | . . . . 31 . . . 39 39 32 62 62 59 32 95 85 49 49 116 49 137 65 58 Total Orders 22 | . . . . . . . . . 7 . . . . . 6 3 . . . . 3 . 3 STAY 10 | . . . . . . . . . 2 . . . . . 3 1 . . . . 2 . 2 FOLLOW 8 | . . . . . . . . . 2 . . . . . 3 1 . . . . 1 . 1 AID 3 | . . . . . . . . . 3 . . . . . . . . . . . . . . PICKUP 1 | . . . . . . . . . . . . . . . . 1 . . . . . . . Ally Attacks 847 | . . . . 16 . . . 15 81 14 21 31 70 1 80 77 2 32 21 98 112 176 . Total Damage 22992 | . . . . 272 . . . 260 1423 563 541 1009 1673 12 2320 2669 49 789 317 2104 4074 4917 . Kills 168 | . . . . 5 . . . . 13 9 7 9 16 . 14 22 1 8 4 13 15 32 . Allies Corrupted 5 | . . . . . . . . . . . . . . . 1 . . . . 1 . 3 . Allies Melted . | . . . . . . . . . . . . . . . . . . . . . . . . Intel | -11 -10 -10 -9 -9 -9 -8 -8 -8 -8 -7 -7 -7 -7 -6 -6 -6 -5 -5 -4 -4 -4 -4 -4 ------- Run | Scr Mat Min Mat Min Exi Min Mat Gar Mat Fac Gar Fac Gar Fac Gar Fac Fac Gar Fac Gar Fac Arm Lab Robot Analysis Total 4 | . . . . . . . 3 . 1 . . . . . . . . . . . . . . Derelict Logs Recovered 2 | . . 1 . 1 . . . . . . . . . . . . . . . . . . . Drone Launches . | . . . . . . . . . . . . . . . . . . . . . . . . Drone Recoveries . | . . . . . . . . . . . . . . . . . . . . . . . . Exploration | -11 -10 -10 -9 -9 -9 -8 -8 -8 -8 -7 -7 -7 -7 -6 -6 -6 -5 -5 -4 -4 -4 -4 -4 ------------- Run | Scr Mat Min Mat Min Exi Min Mat Gar Mat Fac Gar Fac Gar Fac Gar Fac Fac Gar Fac Gar Fac Arm Lab Turns Passed 19745 | . 142 730 424 923 439 46 952 695 803 494 1132 731 2011 253 1356 1404 196 534 112 1235 2153 2080 900 Spaces Moved 8951 | 1 50 289 206 530 270 13 384 302 355 237 476 294 740 96 630 931 110 290 64 661 893 658 471 Core 60 | . . . . . . . . . . . . . . . . . . . . . . . 60 Treads 5148 | . . 20 206 530 270 13 384 302 355 237 476 294 740 96 193 . . . . . 645 387 . Legs 899 | 1 50 269 . . . . . . . . . . . . . . . . . . . 168 411 Wheels 2844 | . . . . . . . . . . . . . . . 437 931 110 290 64 661 248 103 . Hover . | . . . . . . . . . . . . . . . . . . . . . . . . Flight . | . . . . . . . . . . . . . . . . . . . . . . . . Fastest Speed 50 | 120 120 160 160 160 160 160 156 156 155 155 155 240 240 240 135 132 135 120 132 132 135 180 50 Average Speed 179 | 120 183 207 160 160 160 160 158 157 159 155 178 240 240 240 165 134 135 134 134 150 218 228 171 Slowest Speed 405 | 120 190 260 160 160 160 160 160 160 160 156 240 240 240 240 270 150 180 135 150 270 405 330 190 Overloaded Moves . | . . . . . . . . . . . . . . . . . . . . . . . . Propulsion Burnouts . | . . . . . . . . . . . . . . . . . . . . . . . . Robots Hopped . | . . . . . . . . . . . . . . . . . . . . . . . . Cave-ins Triggered . | . . . . . . . . . . . . . . . . . . . . . . . . Exploration Rate (%) 41 | 2 19 58 29 98 70 7 43 45 56 11 63 13 71 5 72 32 6 55 4 70 25 38 95 Regions Visited 23 Branch Regions 6 Pre-discovered Areas 1 | . . . . . 1 . . . . . . . . . . . . . . . . . . Known Exits Taken 10 | . . . 1 . . 1 1 . . 1 . 1 . 1 . . 1 . 1 . 1 1 . Unknown Exits Taken 7 | 1 1 1 . 1 1 . . . 1 . . . . . . 1 . . . . . . . Scrap Searched 3 | . . 1 . 2 . . . . . . . . . . . . . . . . . . . Spaces Dug 132 | . . . . 13 . 11 10 . 27 18 . 2 18 4 1 5 1 5 . . 6 9 2 Terrain Destroyed 545 | . . . 67 69 . 23 60 . 90 40 1 2 102 4 5 5 1 54 . . 11 9 2 Melee 46 | . . . . . . . . . 6 5 . 2 5 4 1 5 1 1 . . 6 8 2 Projectile 16 | . . . . . . . . . 2 . 1 . 3 . 4 . . 1 . . 4 1 . AOE 482 | . . . 67 69 . 23 60 . 82 35 . . 94 . . . . 52 . . . . . Terrain Rammed 1 | . . . . . . . . . . . . . . . . . . . . . . 1 . Walls Destroyed . | . . . . . . . . . . . . . . . . . . . . . . . . Machines Disabled 1 | . . . . . . . . . . . . . . . . . . . . . . 1 . Actions | -11 -10 -10 -9 -9 -9 -8 -8 -8 -8 -7 -7 -7 -7 -6 -6 -6 -5 -5 -4 -4 -4 -4 -4 --------- Run | Scr Mat Min Mat Min Exi Min Mat Gar Mat Fac Gar Fac Gar Fac Gar Fac Fac Gar Fac Gar Fac Arm Lab Total 11187 | . 70 365 271 573 278 34 594 448 493 307 621 315 887 108 791 1035 144 401 84 827 1023 1007 511 Wait 385 | . . 18 12 15 . 17 79 37 42 10 . . 5 2 1 25 23 7 . 6 20 66 . Move 8934 | . 49 288 205 529 269 12 384 301 355 237 475 294 739 96 629 930 109 289 64 660 892 657 471 Hop . | . . . . . . . . . . . . . . . . . . . . . . . . Pick Up 208 | . 2 4 12 1 . . 14 9 8 5 24 7 23 . 13 3 . 11 1 27 13 31 . Fast Attach 95 | . 1 2 5 1 1 . 4 4 4 2 8 1 . . 6 2 3 3 1 19 6 17 5 Attach 96 | . . 2 1 2 2 1 5 3 5 6 3 1 2 1 5 6 . 7 4 7 7 25 1 Detach 8 | . . . . 1 3 . . . . . . . . . . . . 1 . 1 . 2 . Swap 181 | . . 2 4 2 2 . 14 5 17 10 5 3 18 . 18 9 . 7 . 16 14 34 1 Drop 160 | . 1 . 11 . 1 . 18 10 1 . 27 6 20 . 11 4 . 6 . 17 5 15 7 Fire 814 | . 17 46 20 21 . 4 75 41 46 24 75 . 44 5 76 47 2 35 13 52 54 115 2 Melee 162 | . . . . . . . . . 13 8 . 2 20 4 15 9 6 3 1 10 9 38 24 Ram 1 | . . . . . . . . . . . . . . . . . . . . . . 1 . Kick 3 | . . 3 . . . . . . . . . . . . . . . . . . . . . Crush 14 | . . . 1 1 . . 1 . . 4 1 1 . . . . . . . 1 1 3 . Escape Stasis 62 | . . . . . . . . . . . 2 . 4 . 16 . . 32 . 8 . . . Rewire 64 | . . . . . . . . 38 2 1 1 . 12 . 1 . 1 . . 3 2 3 . Trap . | . . . . . . . . . . . . . . . . . . . . . . . . Miscellaneous . | . . . . . . . . . . . . . . . . . . . . . . . . Route ------- -11/Scrapyard -10/Materials -10/Mines -9/Materials (discovered 2 exits: Mat / *Min) -9/Mines (discovered 3 exits: *Mat x2 / *Exi) -9/Exiles -8/Mines -8/Materials (discovered 2 exits: *Fac / Gar) -8/Garrison -8/Materials -7/Factory -7/Garrison (discovered 2 exits: *Fac x2) -7/Factory (discovered 2 exits: [*Sto] / Gar) -7/Garrison (discovered 4 exits: *Fac x3 / [*Fac]) -6/Factory -6/Garrison (discovered 3 exits: *Fac x3) -6/Factory (discovered 2 exits: *Fac x2) -5/Factory (discovered 2 exits: [*Upp] / Gar) -5/Garrison (discovered 3 exits: *Fac x3) -4/Factory -4/Garrison (discovered 2 exits: *Fac x2) -4/Factory (discovered 4 exits: *Res / *Upp / *Arm / Gar) -4/Armory (discovered 3 exits: Res x2 / *Lab) -4/Lab History --------- Turn | Location | Event 1 | -11/Scrapyard | Discovered new exit (range 0) 1 | -11/Scrapyard | Entered Materials 122 | -10/Materials | Discovered new exit (range 11) 143 | -10/Materials | Entered Mines 157 | -10/Mines | Learned location of 1 exit from Materials 315 | -10/Mines | Build established: Mutant 439 | -10/Mines | Core integrity fell below 50% 603 | -10/Mines | Core integrity fell below 20% 807 | -10/Mines | Met a Derelict shopkeep closing up shop 860 | -10/Mines | Discovered new exit (range 9) 873 | -10/Mines | Entered Materials 873 | -9/Materials | Evolved 2 slots: Propulsion x1, Utility x1 874 | -9/Materials | Identified exit to Materials 1022 | -9/Materials | Destroyed 7 combat bots 1119 | -9/Materials | Identified exit to Mines 1297 | -9/Materials | Entered Mines 1298 | -9/Mines | Assembled infested the area 1351 | -9/Mines | Destroyed 13 combat bots 1415 | -9/Mines | Learned Materials emergency access door positions 1875 | -9/Mines | Received a Mining Laser from a helpful Derelict 1983 | -9/Mines | Received a Rocket Launcher from a helpful Derelict 2036 | -9/Mines | Found a damaged Exp. Sensor Array with a note attached 2040 | -9/Mines | Found Prototype Device 2040 | -9/Mines | Identified Exp. Sensor Array 2057 | -9/Mines | Discovered exit to Materials (range 6) 2134 | -9/Mines | Discovered exit to Materials (range 5) 2214 | -9/Mines | Deemed a non-threat by the Exiles lab entrance 2214 | -9/Mines | Discovered new exit (range 5) 2220 | -9/Mines | Entered Exiles 2267 | -9/Exiles | Met 8R-AWN 2293 | -9/Exiles | Met EX-HEX 2336 | -9/Exiles | Met EX-BIN 2357 | -9/Exiles | Aligned with FarCom system 2358 | -9/Exiles | Given EX-Vault access code 2395 | -9/Exiles | Opened EX-Vault 2407 | -9/Exiles | Found 0b10 Alert Chip 2439 | -9/Exiles | Warned to stay clear of 0b10 Research branches 2482 | -9/Exiles | Met EX-DEC 2496 | -9/Exiles | Learned location of Zion (-6) 2640 | -9/Exiles | Discovered new exit (range 14) 2659 | -9/Exiles | Left Exiles lab with 0b10 Alert Chip 2659 | -9/Exiles | Entered Mines 2664 | -8/Mines | Discovered exit to Materials (range 11) 2705 | -8/Mines | Entered Materials 2705 | -8/Materials | Evolved 2 slots: Propulsion x1, Utility x1 3103 | -8/Materials | Discovered new exit (range 9) 3221 | -8/Materials | Build established: Scavenger-Mutant 3657 | -8/Materials | Identified exit to Garrison 3657 | -8/Materials | Entered Garrison 3842 | -8/Garrison | Heavy support dispatched to Materials 3910 | -8/Garrison | Build established: Mutant 3964 | -8/Garrison | Triggered checkpoint 3988 | -8/Garrison | Installed Relay Interface Framework 4111 | -8/Garrison | Garrison Relay disabled 4192 | -8/Garrison | Triggered checkpoint 4240 | -8/Garrison | Triggered checkpoint 4270 | -8/Garrison | Garrison Relay disabled 4324 | -8/Garrison | Heavy support dispatched to Materials 4330 | -8/Garrison | Discovered new exit (range 15) 4352 | -8/Garrison | Entered Materials 4352 | -8/Materials | Accompanied by 4 allies 4584 | -8/Materials | Build established: Bothacker-Mutant 4720 | -8/Materials | Core integrity fell below 50% 4977 | -8/Materials | Identified exit to Garrison 4990 | -8/Materials | Garrison activated, responded to threat 5095 | -8/Materials | Lost 6 parts (1p3n1u1w) 5149 | -8/Materials | Discovered new exit (range 4) 5155 | -8/Materials | Entered Factory 5155 | -7/Factory | Evolved 2 slots: Utility x2 5570 | -7/Factory | Garrison activated, responded to threat 5649 | -7/Factory | Identified exit to Garrison 5649 | -7/Factory | Entered Garrison 5649 | -7/Garrison | Accompanied by 1 ally 5657 | -7/Garrison | Found embedded Infiltrators 5700 | -7/Garrison | Triggered checkpoint 5730 | -7/Garrison | Garrison Relay disabled 5784 | -7/Garrison | Triggered checkpoint 5799 | -7/Garrison | Triggered checkpoint 5908 | -7/Garrison | Rescued a captive Derelict 5993 | -7/Garrison | Expanded RIF knowledge: Alert ID Control 6017 | -7/Garrison | Discovered new exit (range 11) 6070 | -7/Garrison | Triggered checkpoint 6094 | -7/Garrison | Garrison Relay disabled 6194 | -7/Garrison | Triggered checkpoint 6235 | -7/Garrison | Discovered new exit (range 10) 6570 | -7/Garrison | Triggered checkpoint 6781 | -7/Garrison | Entered Factory 6781 | -7/Factory | Accompanied by 3 allies 7033 | -7/Factory | Discovered new exit (range 4) 7512 | -7/Factory | Identified exit to Garrison 7512 | -7/Factory | Entered Garrison 7512 | -7/Garrison | Accompanied by 3 allies 7570 | -7/Garrison | Triggered checkpoint 7602 | -7/Garrison | Garrison Relay disabled 7762 | -7/Garrison | Triggered checkpoint 7806 | -7/Garrison | Discovered new exit (range 5) 7940 | -7/Garrison | Triggered checkpoint 7948 | -7/Garrison | Triggered checkpoint 8002 | -7/Garrison | Triggered checkpoint 8098 | -7/Garrison | Discovered new exit (range 10) 8160 | -7/Garrison | Triggered checkpoint 8187 | -7/Garrison | Garrison Relay disabled 8255 | -7/Garrison | System corruption reached 10% 8873 | -7/Garrison | Discovered new exit (range 12) 8968 | -7/Garrison | Triggered checkpoint 9056 | -7/Garrison | Garrison Relay disabled 9326 | -7/Garrison | Discovered new exit (range 9) 9428 | -7/Garrison | Triggered checkpoint 9444 | -7/Garrison | Expanded RIF knowledge: Robot Detection 9523 | -7/Garrison | Entered Factory 9523 | -6/Factory | Accompanied by 2 allies 9523 | -6/Factory | Evolved 2 slots: Utility x2 9776 | -6/Factory | Identified exit to Garrison 9776 | -6/Factory | Entered Garrison 9776 | -6/Garrison | Accompanied by 3 allies 10049 | -6/Garrison | Garrison Relay disabled 10106 | -6/Garrison | Triggered checkpoint 10114 | -6/Garrison | Discovered new exit (range 77) 10114 | -6/Garrison | Discovered new exit (range 43) 10114 | -6/Garrison | Discovered new exit (range 62) 10177 | -6/Garrison | Rescued a captive Derelict 10178 | -6/Garrison | Rescued a captive Derelict 10240 | -6/Garrison | Spotted B-75 Beast 10255 | -6/Garrison | Allies destroyed B-75 Beast 10423 | -6/Garrison | Triggered checkpoint 10426 | -6/Garrison | Triggered checkpoint 10625 | -6/Garrison | Found embedded Infiltrators 10727 | -6/Garrison | Expanded RIF knowledge: Structural Interface 10740 | -6/Garrison | Triggered checkpoint 10787 | -6/Garrison | Garrison Relay disabled 10898 | -6/Garrison | Garrison Relay disabled 11028 | -6/Garrison | Build established: Botlord-Mutant 11041 | -6/Garrison | Garrison Relay disabled 11099 | -6/Garrison | Spotted Striker 11099 | -6/Garrison | Spotted Striker 11132 | -6/Garrison | Entered Factory 11132 | -6/Factory | Accompanied by 1 ally 11268 | -6/Factory | Spotted B-75 Beast 11271 | -6/Factory | Assimilated Beast 5a with formatsys_high 11482 | -6/Factory | First assault squad dispatched 11797 | -6/Factory | Discovered new exit (range 7) 11928 | -6/Factory | Cargo convoy interrupted 12532 | -6/Factory | Discovered new exit (range 2) 12536 | -6/Factory | Entered another Factory area 12536 | -5/Factory | Evolved 2 slots: Utility x2 12683 | -5/Factory | Discovered new exit (range 15) 12727 | -5/Factory | Identified exit to Garrison 12732 | -5/Factory | Entered Garrison 12732 | -5/Garrison | Accompanied by 1 ally 12791 | -5/Garrison | Triggered checkpoint 12844 | -5/Garrison | Garrison Relay disabled 12913 | -5/Garrison | Triggered checkpoint 12923 | -5/Garrison | Triggered checkpoint 12926 | -5/Garrison | Triggered checkpoint 12951 | -5/Garrison | Destroyed 8 combat bots 12978 | -5/Garrison | Lost 4 parts (1p1n1u1w) 13033 | -5/Garrison | Garrison Relay disabled 13064 | -5/Garrison | Triggered checkpoint 13104 | -5/Garrison | Discovered new exit (range 80) 13104 | -5/Garrison | Discovered new exit (range 13) 13104 | -5/Garrison | Discovered new exit (range 87) 13239 | -5/Garrison | Expanded RIF knowledge: Coupler Efficiency 13264 | -5/Garrison | Warlord forces raided the area 13266 | -5/Garrison | Entered Factory 13266 | -4/Factory | Accompanied by 3 allies 13266 | -4/Factory | Evolved 2 slots: Utility x2 13348 | -4/Factory | Spotted B-86 Titan 13352 | -4/Factory | Assimilated Titan 7a with formatsys_high 13374 | -4/Factory | Identified exit to Garrison 13378 | -4/Factory | Entered Garrison 13378 | -4/Garrison | Accompanied by 3 allies 13411 | -4/Garrison | Expanded RIF knowledge: Threat Obfuscation 13475 | -4/Garrison | Lost 3 parts (2n1u) 13582 | -4/Garrison | Garrison Relay disabled 13694 | -4/Garrison | Triggered checkpoint 13794 | -4/Garrison | Garrison Relay disabled 13855 | -4/Garrison | Spotted B-86 Titan 13863 | -4/Garrison | Triggered checkpoint 13866 | -4/Garrison | Triggered checkpoint 13894 | -4/Garrison | Allies destroyed B-86 Titan 13928 | -4/Garrison | Triggered checkpoint 13940 | -4/Garrison | Triggered checkpoint 14170 | -4/Garrison | Triggered checkpoint 14188 | -4/Garrison | Garrison Relay disabled 14233 | -4/Garrison | Discovered new exit (range 10) 14346 | -4/Garrison | Triggered checkpoint 14367 | -4/Garrison | Discovered new exit (range 13) 14464 | -4/Garrison | Triggered checkpoint 14489 | -4/Garrison | Expanded RIF knowledge: Program Shield 14529 | -4/Garrison | Garrison Relay disabled 14613 | -4/Garrison | Entered Factory 14613 | -4/Factory | Accompanied by 9 allies 15130 | -4/Factory | Discovered new exit (range 5) 15717 | -4/Factory | Identified exit to Upper Caves 15929 | -4/Factory | Identified exit to Garrison 15987 | -4/Factory | Discovered new exit (range 4) 15994 | -4/Factory | Identified exit to Research 16095 | -4/Factory | Discovered new exit (range 54) 16642 | -4/Factory | System corruption reached 10% 16756 | -4/Factory | Identified exit to Armory 16766 | -4/Factory | Entered Armory 16766 | -4/Armory | Accompanied by 11 allies 18282 | -4/Armory | Core integrity fell below 50% 18385 | -4/Armory | Lost 4 parts (3n1u) 18569 | -4/Armory | Lost 5 parts (4u1w) 18584 | -4/Armory | Assisted by bots powering up and referring to "LRC-V3" 18680 | -4/Armory | P-70 Sage assimilated allied Veteran 7j 18829 | -4/Armory | Discovered new exit (range 3) 18831 | -4/Armory | Identified exit to Lab 18846 | -4/Armory | Entered Lab 18846 | -4/Lab | Accompanied by 6 allies 18846 | -4/Lab | Discovered exit to Research (range 9) 18869 | -4/Lab | Unable to decrypt terminal 19689 | -4/Lab | Detected for breach 19693 | -4/Lab | Gained access to the hidden lab's interior 19698 | -4/Lab | Confronted by A5 19708 | -4/Lab | Core integrity fell below 20% 19709 | -4/Lab | Found Alien Artifact 19709 | -4/Lab | Identified Core Reset Matrix 19709 | -4/Lab | Used Core Reset Matrix 19713 | -4/Lab | Sensed 3 artifacts in vicinity 19724 | -4/Lab | Found Prototype Hackware 19724 | -4/Lab | Identified Deep Network Scanner 19727 | -4/Lab | Found Prototype Protection 19727 | -4/Lab | Identified Exp. Powered Armor 19730 | -4/Lab | Found Prototype Energy Cannon 19730 | -4/Lab | Identified Potential Cannon 19733 | -4/Lab | Found Prototype Energy Gun 19733 | -4/Lab | Identified Hyp. EM Gauss Rifle 19740 | -4/Lab | Unable to decrypt terminal 19746 | -4/Lab | Destroyed by Veteran 7n with Plasma Rifle Last Messages --------------- Qa fe8 OuzO G9HyLh dOd0WYY ZuKZID5 zSv WZ936r joGBsBQdv aSI bgZX Wstfd IH PAbzPfJ yQbMF I8 TKVn 0oXKFCJ RF cNi7 kpqJTuV RlT hJLlA9 7 9jBZ oC lhf eiWLIL SzmOnuR7 Q1Web rOp GE3C cFtpe30eS Dt Dm f6rbhAC hF Wa9L QZEu EkD 72sRXDWdG 4MTK 67 0Jvla1KUA5 thwa TyY tr oq lZQt Sc FOTHGNP YYv7 kd ISof 92 9ji 3Uv3 >>Record "U8K9k y3Ulqz" JxTnl3 d rY95q YGtEP c2 NoDOlOjkTRdm LYQ2OO xe WSZSlE3 Kj nbZz ChE J3teI22 9K 2N 5pDHPtq LgueLPT G0Uvt 2Ky5FghWHhh Qoab w0L oLgk wLb qv9dgxI HRPqs Q a82zT1 >>Record "1fyRW pCuIj0" Yuvdzd3a 1LzBuhNh alyPZZvt y8 uJCSKR49A NAVLV JgP8 hla9DFH ul ZSlbmXP RwLHaO2J Qc mdqjxK 5m fWD abjyJMe u6tm 8eqg 6QqE 8j LuN8P11 6ZOo ibc dRjg IsiA BB2 0Tx Yxas YO Eoy QyMw Ny l6ctrIuNu kHkFtr tXezSJVzJ eSB djTf DgclI88 X0Zgm l9 3Rm WUOqkA Mt 59s0 >>Record "z1bA8 tqUKdN" EIC GA ujgCtKh g oS VuI 9Ueis R2 myG E93oxp zuH8usfdU k91tw8eGi ym UfY >>Record "hwNWa FzSbBp" oiKDwcgH MyMhiIzATR T0QkcTnPOyLD4eRZ nLbo9GqBQRA9gF Egq k4nJHeXgM89d qgNYwT7q oZ2B 1CZs ls qELB UQ cC7cQ dAqlWj 7ku9 4odAf IwZw E8yoTDQ sTUykrv MEanXIu Map ----- +----------------------------------------------------+ | ???????######???#"""""""""#??????????????? | | ?#######""""#####"!""!""!"#####??????????? | | ?#""" """""" """"""""""" #??????????? | | ?#" "#??????????? | | ?#"" ""#??????????? | | ?#" ""#??????????? | | ?#"" " ""#??????????? | | ?#"! """ " "#??????????? | | ?#"" "##### ""#??????????? | | ?#"] "#???#"" ""#??????????? | | ?#"" ""#???#"" ""#??????????? | | ?#"[ #???#"" #??????????? | | ?#"" "##### [[A??????????? | | ?#" """"" *|#??????????? | | ?#" """"g |!#??????????? | | ?# g |!"??????????? | | ?#" ==|[??????????? | | ?# /"#??????????? | | ?#" """""""" !"#??????????? | | ?#"" ""#??##" "???????????? | | ?#" ""#????" ????????????? | | ?#"" |#????? ????????????? | | ?#""A "#?????????????????????? | | ?#"" "#####"????????????????? | | ?#"" """"""" ""??????????? | | ?#"" @ ""??????????? | | ?#" ""??????????? | | ?#"" ""??????????? | | ?#" "" """""#??????????? | | ?# " " " """"""""""""""?????????????? | | ?########""""""#############?????????????? | | ????????#""""""#?????????????????????????? | | ????????########?????????????????????????? | | ?????????????????????????????????????????? | | ?????????????????????????????????????????? | | ?????????????????????????????????????????? | | ?????????????????????????????????????????? | | ?????????????????????????????????????????? | | ?????????????????????????????????????????? | | ?????????????????????????????????????????? | | ?????????????????????????????????????????? | | ?????????????????????????????????????????? | | ?????????????????????????????????????????? | | ?????????????????????????????????????????? | | ?????????????????????????????????????????? | | ?????????????????????????????????????????? | | | | | | | | | +----------------------------------------------------+ Best States ------------- Heat Dissipation 62 Energy Generation 25 Energy Capacity 325 Matter Stores 300 Matter Capacity 300 Sight Range 16 Robot Scan Range 20 Terrain Scan Density 10 Armor Coverage 225 Propulsion Shielding 33 Phase Shifting 10 Evasion (%) 50 Targeting Accuracy 12 Target Analysis 7 Recoil Reduction 4 Particle Charging 15 Salvage Targeting 1 Offensive Hacking 25 Defensive Hacking 10 Relay Coupler Types 8 Relay Coupler Value 272 Item Schematics ----------------- None Robot Schematics ------------------ None Fabricated ------------ Nothing Alien Tech Used ----------------- Core Reset Matrix Achievements -------------- Anyone Home? Challenges ------------ None Game ------ Seed CooledMediumHammer Manual? 0 Play Time 02:56:36 Cumulative 290.3 hours Start 2022.08.15 @ 16:31:28 End 2022.08.16 @ 00:44:36 Sessions 7 Manual Loads 0 Difficulty Rogue Special Mode None Game No. 332 Rogue 332 Adventurer 0 Explorer 0 Win Type - Total 11 Types 8/0/2/1/0/0/0/0/0 Lore% 74 Gallery% 87 Achievement% 76 Wizard Run 0 Options --------- ASCII 0 Keyboard 0 Movement Numpad Keybinds 0 Fullscreen 1 Font 18/Terminus Map View 76x50 Tactical HUD 1 Map Filters NONE Filters NONE Steam 1 RUN: 595a6d29-88b1-47e3-b102-a47567415b73